[Event "FIDE World Rapid-ch Open 2018"]
[White "Yudin, Sergei"]
[Black "Yakubboev, Nodirbek"]
[Site "St. Petersburg"]
[Round "14.41"]
[Annotator "ChessBase"]
[Result "1-0"]
[Date "2018.12.28"]
[WhiteElo "2507"]
[BlackElo "2556"]
[PlyCount "73"]
[TimeControl "900+10"]

1. e4 {[%emt 0:0:0]} c5 {[%emt 0:0:0]} 2. Nf3 {[%emt 0:0:0]} d6 {[%emt 0:0:0]} 3. c3 {[%emt 0:0:0]} Nf6 {[%emt 0:0:1]} 4. h3 {[%emt 0:0:0]} g6 {[%emt 0:1:29]
} 5. Bd3 {[%emt 0:0:4]} Bg7 {[%emt 0:3:24]} 6. 0-0 {[%emt 0:0:0]} d5 {[%emt 0:0:49]} 7. Bb5+ {[%emt 0:0:33]} Nc6 {[%emt 0:1:23]} 8. e5 {[%emt 0:0:24]} Nd7 {[%emt 0:0:12]} 9. d4 {[%emt 0:0:3]} Qb6 {[%emt 0:0:0]} 10. Na3 {[%emt 0:1:2]} a6 {[%emt 0:1:26]} 11. Bxc6 {[%emt 0:1:6]} Qxc6 {[%emt 0:0:26]} 12. Re1 {[%emt 0:0:12]} 0-0 {[%emt 0:1:13]} 13. Nc2 {[%emt 0:0:5]
} b6 {[%emt 0:0:54]} 14. Ne3 {[%emt 0:0:34]} cxd4 {[%emt 0:0:0]} 15. Nxd4 {[%emt 0:0:54]} Qb7 {[%emt 0:0:36]} 16. Nf3 {[%emt 0:1:11]} Nc5 {[%emt 0:1:17]} 17. Nxd5 {[%emt 0:1:32]} Bf5 {[%emt 0:1:15]} 18. Nf4 {[%emt 0:3:23]
} Rad8 {[%emt 0:0:48]} 19. Nd4 {[%emt 0:0:5]} Be4 {[%emt 0:0:0]} 20. Qe2 {[%emt 0:1:42]} Bxe5 {[%emt 0:0:28]} 21. b4 {[%emt 0:1:6]} Bxf4 {[%emt 0:0:10]} 22. Bxf4 {[%emt 0:0:2]} Bxg2 {[%emt 0:0:2]} 23. bxc5 {[%emt 0:0:6]} bxc5 {[%emt 0:0:2]} 24. Qg4 {[%emt 0:0:25]} Be4 {[%emt 0:0:0]} 25. Ne6 {[%emt 0:1:4]} h5 {[%emt 0:0:8]} 26. Nxd8 {[%emt 0:0:4]} Rxd8 {[%emt 0:0:1]} 27. Qg3 {[%emt 0:0:10]} c4 {[%emt 0:0:15]} 28. Rad1 {[%emt 0:0:8]
} Bd3 {[%emt 0:0:6]} 29. Re3 {[%emt 0:0:38]} Rd7 {[%emt 0:0:0]} 30. Rde1 {[%emt 0:0:2]} Kg7 {[%emt 0:0:28]} 31. Qg5 {[%emt 0:0:9]} f6 {[%emt 0:0:4]} 32. Qh6+ {[%emt 0:0:2]} Kg8 {[%emt 0:0:5]} 33. Rxd3 {[%emt 0:0:19]
} cxd3 {[%emt 0:0:1]} 34. Qxg6+ {[%emt 0:0:2]} Kh8 {[%emt 0:0:0]} 35. Qxh5+ {[%emt 0:0:29]} Kg8 {[%emt 0:0:0]} 36. Kh2 {[%emt 0:0:50]
} e5 {[%emt 0:0:2]} 37. Bh6 {[%emt 0:0:10]} 1-0

[Event "FIDE World Rapid-ch Open 2018"]
[White "Sarana, Alexey"]
[Black "Kryakvin, Dmitry"]
[Site "St. Petersburg"]
[Round "14.42"]
[Annotator "ChessBase"]
[Result "1-0"]
[Date "2018.12.28"]
[WhiteElo "2618"]
[BlackElo "2588"]
[PlyCount "89"]
[TimeControl "900+10"]

1. d4 {[%emt 0:0:0]} d5 {[%emt 0:0:0]} 2. Nf3 {[%emt 0:0:0]} Nf6 {[%emt 0:0:0]
} 3. c4 {[%emt 0:0:0]} c6 {[%emt 0:0:0]} 4. Nc3 {[%emt 0:0:0]} dxc4 {[%emt 0:0:0]} 5. a4 {[%emt 0:0:0]} a5 {[%emt 0:0:0]} 6. e3 {[%emt 0:0:5]
} Bg4 {[%emt 0:0:0]} 7. Bxc4 {[%emt 0:0:2]} e6 {[%emt 0:0:0]} 8. 0-0 {[%emt 0:0:4]} Bb4 {[%emt 0:0:4]} 9. Qb3 {[%emt 0:0:43]} Bxf3 {[%emt 0:0:29]} 10. gxf3 {[%emt 0:0:1]} Nbd7 {[%emt 0:0:20]} 11. Na2 {[%emt 0:0:15]
} Bd6 {[%emt 0:0:46]} 12. Qxb7 {[%emt 0:0:33]} Rb8 {[%emt 0:0:0]} 13. Qa6 {[%emt 0:0:52]} Nd5 {[%emt 0:2:38]} 14. f4 {[%emt 0:2:6]} 0-0 {[%emt 0:2:23]} 15. Bxd5 {[%emt 0:0:37]} exd5 {[%emt 0:0:19]} 16. Qxc6 {[%emt 0:0:29]
} Nf6 {[%emt 0:0:29]} 17. Qc2 {[%emt 0:0:3]} Qd7 {[%emt 0:0:0]} 18. f3 {[%emt 0:0:6]} Rfc8 {[%emt 0:1:16]} 19. Nc3 {[%emt 0:0:2]} Bb4 {[%emt 0:0:2]} 20. Bd2 {[%emt 0:0:6]} Rc6 {[%emt 0:0:34]} 21. Qd3 {[%emt 0:0:15]
} Qh3 {[%emt 0:0:33]} 22. Rf2 {[%emt 0:0:11]} Nh5 {[%emt 0:0:0]} 23. Qf1 {[%emt 0:2:42]} Rg6+ {[%emt 0:1:30]} 24. Rg2 {[%emt 0:0:1]} Rbb6 {[%emt 0:0:40]} 25. Rg5 {[%emt 0:0:42]} Qh4 {[%emt 0:1:36]} 26. Qg2 {[%emt 0:0:23]
} Be7 {[%emt 0:1:10]} 27. Rg4 {[%emt 0:0:48]} Rxb2 {[%emt 0:0:0]} 28. Ra2 {[%emt 0:2:31]} Rxd2 {[%emt 0:1:24]} 29. Qxd2 {[%emt 0:0:24]} Bb4 {[%emt 0:1:11]} 30. Rxg6 {[%emt 0:0:5]} hxg6 {[%emt 0:0:1]} 31. Qc1 {[%emt 0:0:3]
} Nf6 {[%emt 0:0:20]} 32. Rg2 {[%emt 0:1:11]} Qh3 {[%emt 0:0:0]} 33. Na2 {[%emt 0:0:27]} Bf8 {[%emt 0:0:30]} 34. Qd1 {[%emt 0:0:19]} Qe6 {[%emt 0:0:9]} 35. Qb3 {[%emt 0:0:4]} Qa6 {[%emt 0:0:12]} 36. Nc1 {[%emt 0:0:6]
} Qe6 {[%emt 0:0:13]} 37. Kf2 {[%emt 0:0:20]} Bd6 {[%emt 0:0:0]} 38. Nd3 {[%emt 0:0:2]} Qh3 {[%emt 0:0:5]} 39. Qc2 {[%emt 0:0:22]} g5 {[%emt 0:0:8]} 40. fxg5 {[%emt 0:0:8]} Nh5 {[%emt 0:0:10]} 41. Qc6 {[%emt 0:0:49]
} Bxh2 {[%emt 0:0:5]} 42. Qe8+ {[%emt 0:0:4]} Kh7 {[%emt 0:0:0]} 43. g6+ {[%emt 0:0:8]} fxg6 {[%emt 0:0:1]} 44. Qxg6+ {[%emt 0:0:0]} Kh8 {[%emt 0:0:3]} 45. Qg4 1-0

[Event "FIDE World Rapid-ch Open 2018"]
[White "Gasanov, Eldar"]
[Black "Piorun, Kacper"]
[Site "St. Petersburg"]
[Round "14.43"]
[Annotator "ChessBase"]
[Result "0-1"]
[Date "2018.12.28"]
[WhiteElo "2499"]
[BlackElo "2634"]
[PlyCount "108"]
[TimeControl "900+10"]

1. d4 {[%emt 0:0:0]} Nf6 {[%emt 0:0:0]} 2. c4 {[%emt 0:0:1]} e6 {[%emt 0:0:0]} 3. Nf3 {[%emt 0:0:23]} d5 {[%emt 0:0:2]} 4. e3 {[%emt 0:0:10]} c5 {[%emt 0:0:20]
} 5. Nc3 {[%emt 0:0:21]} cxd4 {[%emt 0:0:2]} 6. exd4 {[%emt 0:0:0]} Bb4 {[%emt 0:0:2]} 7. cxd5 {[%emt 0:0:25]} Nxd5 {[%emt 0:0:8]} 8. Bd2 {[%emt 0:0:21]} Nc6 {[%emt 0:0:16]} 9. Bd3 {[%emt 0:0:10]} 0-0 {[%emt 0:0:0]} 10. 0-0 {[%emt 0:0:10]} Nf6 {[%emt 0:0:1]} 11. Bg5 {[%emt 0:0:27]} Be7 {[%emt 0:0:3]} 12. Re1 {[%emt 0:0:40]} Nd5 {[%emt 0:0:35]} 13. Bxe7 {[%emt 0:1:50]
} Ncxe7 {[%emt 0:0:3]} 14. Ne5 {[%emt 0:0:33]} Nf6 {[%emt 0:0:0]} 15. Rc1 {[%emt 0:0:32]} Bd7 {[%emt 0:1:1]} 16. Ne4 {[%emt 0:0:16]} Ned5 {[%emt 0:1:11]} 17. Qb3 {[%emt 0:2:30]} b6 {[%emt 0:0:29]} 18. Qa3 {[%emt 0:1:19]
} a5 {[%emt 0:1:39]} 19. Qd6 {[%emt 0:1:23]} Ra7 {[%emt 0:0:0]} 20. Ng5 {[%emt 0:0:45]} Qe7 {[%emt 0:2:47]} 21. Ngxf7 {[%emt 0:1:59]} Rxf7 {[%emt 0:0:19]} 22. Qb8+ {[%emt 0:1:28]} Be8 {[%emt 0:0:1]} 23. Nc6 {[%emt 0:0:34]
} Qb7 {[%emt 0:3:26]} 24. Qxa7 {[%emt 0:0:26]} Bxc6 {[%emt 0:0:0]} 25. Qxb7 {[%emt 0:0:7]} Bxb7 {[%emt 0:0:2]} 26. Rxe6 {[%emt 0:0:0]} Rd7 {[%emt 0:0:52]} 27. Bb5 {[%emt 0:0:26]} Rd8 {[%emt 0:0:9]} 28. f3 {[%emt 0:0:12]} h5 {[%emt 0:0:50]} 29. h4 {[%emt 0:0:32]} Kf7 {[%emt 0:0:0]} 30. Re5 {[%emt 0:0:4]} g6 {[%emt 0:0:39]} 31. Kf2 {[%emt 0:0:21]} Rd6 {[%emt 0:0:31]} 32. a3 {[%emt 0:0:43]} Nd7 {[%emt 0:0:17]} 33. Ree1 {[%emt 0:0:17]
} N7f6 {[%emt 0:0:46]} 34. Rc2 {[%emt 0:0:8]} Rd8 {[%emt 0:0:0]} 35. Rec1 {[%emt 0:0:10]} Kf8 {[%emt 0:0:52]} 36. Re1 {[%emt 0:0:14]} Kf7 {[%emt 0:0:13]} 37. Kg3 {[%emt 0:0:12]} Bc8 {[%emt 0:0:22]} 38. Re5 {[%emt 0:0:7]
} Bf5 {[%emt 0:0:7]} 39. Rc6 {[%emt 0:0:13]} Kg7 {[%emt 0:0:0]} 40. Bc4 {[%emt 0:0:10]} Rd7 {[%emt 0:0:6]} 41. b3 {[%emt 0:0:23]} Rd8 {[%emt 0:0:10]} 42. Kf2 {[%emt 0:0:3]} Rd7 {[%emt 0:0:5]} 43. g3 {[%emt 0:0:0]} Rd8 {[%emt 0:0:2]} 44. Bb5 {[%emt 0:0:11]} Kf7 {[%emt 0:0:19]} 45. Be2 {[%emt 0:0:15]} Rd7 {[%emt 0:0:16]} 46. Bc4 {[%emt 0:0:10]} Kg7 {[%emt 0:0:2]
} 47. Rc8 {[%emt 0:0:14]} Ne7 {[%emt 0:0:15]} 48. Ra8 {[%emt 0:0:0]} Nc6 {[%emt 0:0:3]} 49. Rb5 {[%emt 0:0:5]} Nxd4 {[%emt 0:0:12]} 50. Rxb6 {[%emt 0:0:2]} Nc2 {[%emt 0:0:19]} 51. Ke2 {[%emt 0:0:23]} Nd4+ {[%emt 0:0:8]
} 52. Ke3 {[%emt 0:0:5]} Nc2+ {[%emt 0:0:11]} 53. Kf4 {[%emt 0:0:2]
} Rd4+ {[%emt 0:0:3]} 54. Ke5 {[%emt 0:0:28]} Nd7# {[%emt 0:0:0] Kxd4} 0-1

[Event "FIDE World Rapid-ch Open 2018"]
[White "Shaposhnikov, Evgeny"]
[Black "Vokhidov, Shamsiddin"]
[Site "St. Petersburg"]
[Round "14.44"]
[Annotator "ChessBase"]
[Result "1/2-1/2"]
[Date "2018.12.28"]
[WhiteElo "2576"]
[BlackElo "2480"]
[PlyCount "101"]
[TimeControl "900+10"]

1. Nf3 {[%emt 0:0:0]} c5 {[%emt 0:0:0]} 2. c4 {[%emt 0:0:0]} Nc6 {[%emt 0:0:0]
} 3. d4 {[%emt 0:0:1]} cxd4 {[%emt 0:0:0]} 4. Nxd4 {[%emt 0:0:0]} Nf6 {[%emt 0:0:0]} 5. g3 {[%emt 0:0:8]} g6 {[%emt 0:0:29]} 6. Bg2 {[%emt 0:0:3]} Bg7 {[%emt 0:0:1]} 7. 0-0 {[%emt 0:0:3]} 0-0 {[%emt 0:0:0]} 8. Nc3 {[%emt 0:0:4]} Qa5 {[%emt 0:0:2]} 9. Nb3 {[%emt 0:0:28]} Qh5 {[%emt 0:0:2]
} 10. e3 {[%emt 0:0:41]} d6 {[%emt 0:0:33]} 11. Qxh5 {[%emt 0:0:0]} Nxh5 {[%emt 0:0:3]} 12. c5 {[%emt 0:0:23]} Be6 {[%emt 0:1:2]} 13. cxd6 {[%emt 0:0:36]} exd6 {[%emt 0:0:1]} 14. Rd1 {[%emt 0:0:8]} Rfd8 {[%emt 0:0:25]
} 15. Nb5 {[%emt 0:0:20]} Bc4 {[%emt 0:1:30]} 16. N5d4 {[%emt 0:0:52]
} d5 {[%emt 0:0:29]} 17. Nxc6 {[%emt 0:0:53]} bxc6 {[%emt 0:0:0]} 18. Na5 {[%emt 0:0:1]} Rac8 {[%emt 0:0:12]} 19. Bf3 {[%emt 0:3:14]} Ba6 {[%emt 0:1:32]} 20. Rb1 {[%emt 0:0:5]} Nf6 {[%emt 0:0:5]} 21. b4 {[%emt 0:1:26]
} Ne4 {[%emt 0:3:41]} 22. Bb2 {[%emt 0:0:16]} Bb5 {[%emt 0:0:0]} 23. Bxg7 {[%emt 0:0:14]} Kxg7 {[%emt 0:0:1]} 24. Rbc1 {[%emt 0:0:58]} f5 {[%emt 0:0:4]} 25. h4 {[%emt 0:0:25]} Kf6 {[%emt 0:0:8]} 26. Nb7 {[%emt 0:2:7]
} Rd7 {[%emt 0:0:13]} 27. Nc5 {[%emt 0:0:2]} Nxc5 {[%emt 0:0:0]} 28. Rxc5 {[%emt 0:0:1]} Rb8 {[%emt 0:0:7]} 29. Rd4 {[%emt 0:0:52]} Ke5 {[%emt 0:0:42]} 30. Bd1 {[%emt 0:0:12]} Rd6 {[%emt 0:0:41]} 31. Bb3 {[%emt 0:0:24]
} Be2 {[%emt 0:0:7]} 32. f4+ {[%emt 0:0:25]} Kf6 {[%emt 0:0:0]} 33. Ra5 {[%emt 0:0:13]} Rb7 {[%emt 0:3:21]} 34. Kf2 {[%emt 0:0:3]} Bg4 {[%emt 0:0:7]} 35. Rc5 {[%emt 0:0:19]} Ke7 {[%emt 0:0:15]} 36. a4 {[%emt 0:0:0]} a6 {[%emt 0:0:32]} 37. Bc2 {[%emt 0:0:26]} Re6 {[%emt 0:0:2]} 38. Bd3 {[%emt 0:0:5]} Kd6 {[%emt 0:0:6]} 39. Bxa6 {[%emt 0:1:23]} Ra7 {[%emt 0:0:19]
} 40. Ra5 {[%emt 0:0:38]} Re8 {[%emt 0:0:35]} 41. b5 {[%emt 0:0:0]} Kc7 {[%emt 0:0:47]} 42. bxc6 {[%emt 0:0:24]} Rea8 {[%emt 0:0:1]} 43. Raxd5 {[%emt 0:0:21]} Rxa6 {[%emt 0:0:1]} 44. Rd7+ {[%emt 0:0:8]} Kxc6 {[%emt 0:0:6]} 45. R7d6+ {[%emt 0:0:11]} Kc5 {[%emt 0:0:35]} 46. R6d5+ {[%emt 0:0:4]
} Kb6 {[%emt 0:0:2]} 47. Rd6+ {[%emt 0:0:10]} Kc7 {[%emt 0:0:0]} 48. Rd7+ {[%emt 0:0:3]} Kc8 {[%emt 0:0:15]} 49. Rd8+ {[%emt 0:0:16]} Kb7 {[%emt 0:0:9]} 50. R8d7+ {[%emt 0:0:4]} Kb6 {[%emt 0:0:4]} 51. R7d6+ {[%emt 0:0:9]} 1/2-1/2

[Event "FIDE World Rapid-ch Open 2018"]
[White "Abdusattorov, Nodirbek"]
[Black "Khanin, Semen"]
[Site "St. Petersburg"]
[Round "14.45"]
[Annotator "ChessBase"]
[Result "1/2-1/2"]
[Date "2018.12.28"]
[WhiteElo "2546"]
[BlackElo "2514"]
[PlyCount "172"]
[TimeControl "900+10"]

1. e4 {[%emt 0:0:0]} e5 {[%emt 0:0:0]} 2. Nf3 {[%emt 0:0:0]} Nc6 {[%emt 0:0:0]
} 3. Nc3 {[%emt 0:0:0]} Nf6 {[%emt 0:0:0]} 4. d4 {[%emt 0:0:0]} exd4 {[%emt 0:0:3]} 5. Nxd4 {[%emt 0:0:0]} Bb4 {[%emt 0:0:2]} 6. Nxc6 {[%emt 0:0:0]} bxc6 {[%emt 0:0:2]} 7. Bd3 {[%emt 0:0:3]} 0-0 {[%emt 0:0:9]
} 8. 0-0 {[%emt 0:0:3]} Re8 {[%emt 0:0:9]} 9. Qf3 {[%emt 0:0:0]} Qe7 {[%emt 0:0:34]} 10. Bd2 {[%emt 0:0:32]} Rb8 {[%emt 0:0:41]} 11. a3 {[%emt 0:0:26]} Bd6 {[%emt 0:0:20]} 12. Rae1 {[%emt 0:1:52]} Be5 {[%emt 0:0:5]
} 13. b4 {[%emt 0:0:31]} d6 {[%emt 0:0:20]} 14. h3 {[%emt 0:0:0]} Be6 {[%emt 0:2:20]} 15. Qe2 {[%emt 0:0:42]} Bd4 {[%emt 0:0:2]} 16. Kh1 {[%emt 0:0:39]} Nd7 {[%emt 0:1:3]} 17. f4 {[%emt 0:0:38]} f6 {[%emt 0:0:0]} 18. Nd1 {[%emt 0:0:16]} Bf7 {[%emt 0:1:9]} 19. Be3 {[%emt 0:0:26]} Bb6 {[%emt 0:1:15]} 20. Qd2 {[%emt 0:0:10]} c5 {[%emt 0:0:15]} 21. Nc3 {[%emt 0:0:0]} cxb4 {[%emt 0:2:31]} 22. axb4 {[%emt 0:0:8]} c6 {[%emt 0:0:44]} 23. Bxb6 {[%emt 0:1:18]} Nxb6 {[%emt 0:0:42]} 24. Qf2 {[%emt 0:3:7]} d5 {[%emt 0:0:23]
} 25. Qd4 {[%emt 0:0:14]} dxe4 {[%emt 0:1:55]} 26. Rxe4 {[%emt 0:0:5]
} Qd7 {[%emt 0:0:18]} 27. Rxe8+ {[%emt 0:0:31]} Qxe8 {[%emt 0:0:0]} 28. Ra1 {[%emt 0:0:44]} Qe7 {[%emt 0:0:1]} 29. Kh2 {[%emt 0:0:32]} Rd8 {[%emt 0:0:56]} 30. Qe4 {[%emt 0:0:17]} Qxe4 {[%emt 0:0:11]} 31. Bxe4 {[%emt 0:0:1]
} Nd5 {[%emt 0:0:17]} 32. Bxd5 {[%emt 0:1:7]} Bxd5 {[%emt 0:0:0]} 33. Rxa7 {[%emt 0:0:19]} Bc4 {[%emt 0:0:1]} 34. Rc7 {[%emt 0:0:37]} Rd2 {[%emt 0:0:2]} 35. Ne4 {[%emt 0:0:12]} Rd4 {[%emt 0:0:18]} 36. Ng3 {[%emt 0:0:2]
} Bd5 {[%emt 0:0:8]} 37. Rxg7+ {[%emt 0:0:7]} Kf8 {[%emt 0:0:0]} 38. Nh5 {[%emt 0:0:15]} Rd2 {[%emt 0:0:17]} 39. Rg3 {[%emt 0:0:55]} Kf7 {[%emt 0:0:10]} 40. c3 {[%emt 0:0:12]} Be4 {[%emt 0:0:21]} 41. f5 {[%emt 0:0:18]
} Bxf5 {[%emt 0:0:10]} 42. Rg7+ {[%emt 0:1:2]} Ke6 {[%emt 0:0:0]} 43. Nf4+ {[%emt 0:0:21]} Ke5 {[%emt 0:0:4]} 44. Kg3 {[%emt 0:0:3]} Rc2 {[%emt 0:0:2]} 45. Re7+ {[%emt 0:0:1]} Kd6 {[%emt 0:0:4]} 46. Re3 {[%emt 0:0:1]
} Rc1 {[%emt 0:0:27]} 47. Nh5 {[%emt 0:0:5]} Kd5 {[%emt 0:0:0]} 48. Nxf6+ {[%emt 0:0:3]} Kc4 {[%emt 0:0:1]} 49. Kf4 {[%emt 0:0:21]} Bb1 {[%emt 0:1:3]} 50. Ne4 {[%emt 0:0:55]} Bxe4 {[%emt 0:0:18]} 51. Rxe4+ {[%emt 0:0:2]
} Kxc3 {[%emt 0:0:2]} 52. Kg5 {[%emt 0:0:7]} Kb3 {[%emt 0:0:0]} 53. Kh6 {[%emt 0:0:28]} Rc4 {[%emt 0:0:1]} 54. Re3+ {[%emt 0:0:10]} Kxb4 {[%emt 0:0:1]} 55. Kxh7 {[%emt 0:0:1]} Rh4+ {[%emt 0:0:27]} 56. Kg6 {[%emt 0:0:4]
} c5 {[%emt 0:0:1]} 57. g4 {[%emt 0:0:17]} c4 {[%emt 0:0:5]} 58. Kg5 {[%emt 0:0:3]} Rh8 {[%emt 0:0:2]} 59. h4 {[%emt 0:0:1]} Rg8+ {[%emt 0:0:6]
} 60. Kf4 {[%emt 0:0:7]} Rf8+ {[%emt 0:0:5]} 61. Kg3 {[%emt 0:0:2]
} c3 {[%emt 0:0:2]} 62. g5 {[%emt 0:0:13]} c2 {[%emt 0:0:32]} 63. Re1 {[%emt 0:0:7]} Kc3 {[%emt 0:0:4]} 64. h5 {[%emt 0:0:14]} Kd2 {[%emt 0:0:3]
} 65. Ra1 {[%emt 0:0:13]} Ra8 {[%emt 0:0:19]} 66. Rh1 {[%emt 0:0:0]} Ra3+ {[%emt 0:0:22]} 67. Kf4 {[%emt 0:0:30]} Rh3 {[%emt 0:0:8]} 68. Rxh3 {[%emt 0:0:7]} c1=Q {[%emt 0:0:2]} 69. h6 {[%emt 0:0:5]} Ke2+ {[%emt 0:0:16]
} 70. Kg4 {[%emt 0:0:2]} Qg1+ {[%emt 0:0:11]} 71. Kh5 {[%emt 0:0:3]
} Qg2 {[%emt 0:0:9]} 72. Rh4 {[%emt 0:0:25]} Qf3+ {[%emt 0:0:0]} 73. Kg6 {[%emt 0:0:3]} Qc6+ {[%emt 0:0:1]} 74. Kf5 {[%emt 0:0:4]} Qd5+ {[%emt 0:0:5]} 75. Kf6 {[%emt 0:0:3]} Qd6+ {[%emt 0:0:4]} 76. Kf7 {[%emt 0:0:7]
} Qd7+ {[%emt 0:0:5]} 77. Kg6 {[%emt 0:0:1]} Qc6+ {[%emt 0:0:0]} 78. Kh5 {[%emt 0:0:22]} Qf3+ {[%emt 0:0:1]} 79. Kg6 {[%emt 0:0:11]} Qc6+ {[%emt 0:0:1]} 80. Kg7 {[%emt 0:0:7]} Qd7+ {[%emt 0:0:2]} 81. Kf6 {[%emt 0:0:5]
} Qd6+ {[%emt 0:0:2]} 82. Kf5 {[%emt 0:0:3]} Qd5+ {[%emt 0:0:0]} 83. Kf6 {[%emt 0:0:6]} Qd6+ {[%emt 0:0:1]} 84. Kf5 {[%emt 0:0:17]} Qd5+ {[%emt 0:0:2]} 85. Kf6 {[%emt 0:0:2]} Qd6+ {[%emt 0:0:1]} 86. Kf5 {[%emt 0:0:4]
} Qd5+ {[%emt 0:0:1] Ke4} 1/2-1/2

[Event "FIDE World Rapid-ch Open 2018"]
[White "Dreev, Aleksey"]
[Black "Nihal Sarin"]
[Site "St. Petersburg"]
[Round "14.46"]
[Annotator "ChessBase"]
[Result "1-0"]
[Date "2018.12.28"]
[WhiteElo "2670"]
[BlackElo "2576"]
[PlyCount "83"]
[TimeControl "900+10"]

1. d4 {[%emt 0:0:0]} Nf6 {[%emt 0:0:4]} 2. Nf3 {[%emt 0:0:0]} d5 {[%emt 0:0:9]
} 3. c4 {[%emt 0:0:0]} e6 {[%emt 0:0:1]} 4. Nc3 {[%emt 0:0:0]} dxc4 {[%emt 0:0:7]} 5. e4 {[%emt 0:0:0]} b5 {[%emt 0:0:9]} 6. e5 {[%emt 0:0:10]
} Nd5 {[%emt 0:0:2]} 7. Nxb5 {[%emt 0:0:1]} Nb6 {[%emt 0:0:0]} 8. Be2 {[%emt 0:0:8]} Be7 {[%emt 0:0:3]} 9. 0-0 {[%emt 0:0:2]} Nc6 {[%emt 0:0:1]
} 10. Qd2 {[%emt 0:0:8]} 0-0 {[%emt 0:0:26]} 11. Qf4 {[%emt 0:0:0]} Rb8 {[%emt 0:0:48]} 12. Qg3 {[%emt 0:0:50]} Kh8 {[%emt 0:0:7]} 13. Rd1 {[%emt 0:0:7]} Na4 {[%emt 0:2:5]} 14. Bxc4 {[%emt 0:1:44]} Ba6 {[%emt 0:0:56]
} 15. Nxa7 {[%emt 0:0:47]} Nxa7 {[%emt 0:0:1]} 16. Bxa6 {[%emt 0:0:1]
} Nxb2 {[%emt 0:0:1]} 17. Re1 {[%emt 0:1:8]} Qd5 {[%emt 0:0:0]} 18. a4 {[%emt 0:4:11]} c5 {[%emt 0:5:14]} 19. dxc5 {[%emt 0:1:7]} Bxc5 {[%emt 0:0:2]} 20. Ng5 {[%emt 0:1:14]} h6 {[%emt 0:4:9]} 21. Ne4 {[%emt 0:0:0]} Bd4 {[%emt 0:0:1]} 22. Bf4 {[%emt 0:0:29]} Nc6 {[%emt 0:1:52]} 23. Bb5 {[%emt 0:0:3]} Ne7 {[%emt 0:0:17]} 24. Nc3 {[%emt 0:2:32]} Qc5 {[%emt 0:0:43]
} 25. Ne4 {[%emt 0:0:3]} Qd5 {[%emt 0:0:0]} 26. Nc3 {[%emt 0:0:0]} Qc5 {[%emt 0:0:2]} 27. Rac1 {[%emt 0:0:1]} Nf5 {[%emt 0:0:32]} 28. Qf3 {[%emt 0:0:2]} Rfc8 {[%emt 0:0:20]} 29. Ne4 {[%emt 0:0:41]} Qb4 {[%emt 0:0:8]
} 30. Bd2 {[%emt 0:1:14]} Qe7 {[%emt 0:0:17]} 31. Ng3 {[%emt 0:0:0]} Rxc1 {[%emt 0:0:13]} 32. Rxc1 {[%emt 0:0:5]} Bxe5 {[%emt 0:0:8]} 33. Nxf5 {[%emt 0:0:11]} exf5 {[%emt 0:0:1]} 34. Qxf5 {[%emt 0:0:5]} Qd6 {[%emt 0:0:5]
} 35. Be3 {[%emt 0:0:26]} Rd8 {[%emt 0:0:30]} 36. a5 {[%emt 0:0:0]} Nd1 {[%emt 0:0:17]} 37. Bb6 {[%emt 0:0:18]} Qd2 {[%emt 0:0:13]} 38. Rc8 {[%emt 0:0:30]} Qe1+ {[%emt 0:0:11]} 39. Bf1 {[%emt 0:0:1]} Rxc8 {[%emt 0:0:10]
} 40. Qxc8+ Kh7 41. Qc2+ {[%emt 0:0:14]} g6 {[%emt 0:0:7]} 42. Qe2 {[%emt 0:0:5]} 1-0

[Event "FIDE World Rapid-ch Open 2018"]
[White "Jones, Gawain C B"]
[Black "Huzman, Alexander"]
[Site "St. Petersburg"]
[Round "14.48"]
[Annotator "ChessBase"]
[Result "1-0"]
[Date "2018.12.28"]
[WhiteElo "2682"]
[BlackElo "2580"]
[PlyCount "125"]
[TimeControl "900+10"]

1. e4 {[%emt 0:0:0]} e5 {[%emt 0:0:0]} 2. Nf3 {[%emt 0:0:0]} Nf6 {[%emt 0:0:0]
} 3. d4 {[%emt 0:0:3]} Nxe4 {[%emt 0:0:0]} 4. Bd3 {[%emt 0:0:0]} d5 {[%emt 0:0:7]} 5. Nxe5 {[%emt 0:0:2]} Nd7 {[%emt 0:0:7]} 6. 0-0 {[%emt 0:0:4]} Nxe5 {[%emt 0:0:40]} 7. dxe5 {[%emt 0:0:1]} Nc5 {[%emt 0:0:2]
} 8. Be3 {[%emt 0:0:2]} Nxd3 {[%emt 0:1:16]} 9. Qxd3 {[%emt 0:0:0]} c6 {[%emt 0:0:1]} 10. Nd2 {[%emt 0:0:25]} Be7 {[%emt 0:1:33]} 11. f4 {[%emt 0:0:4]} g6 {[%emt 0:0:2]} 12. c3 {[%emt 0:1:26]} Bf5 {[%emt 0:0:0]} 13. Qe2 {[%emt 0:0:2]} Qd7 {[%emt 0:0:1]} 14. Nb3 {[%emt 0:0:32]} b6 {[%emt 0:0:13]} 15. h3 {[%emt 0:0:17]} h5 {[%emt 0:2:13]} 16. Rad1 {[%emt 0:0:13]
} c5 {[%emt 0:0:24]} 17. Bf2 {[%emt 0:0:49]} Rd8 {[%emt 0:0:0]} 18. Nd2 {[%emt 0:2:11]} Qa4 {[%emt 0:0:12]} 19. Be3 {[%emt 0:3:19]} d4 {[%emt 0:2:20]} 20. cxd4 {[%emt 0:0:1]} cxd4 {[%emt 0:0:0]} 21. Bf2 {[%emt 0:0:8]
} d3 {[%emt 0:0:22]} 22. Qf3 {[%emt 0:0:6]} Qxa2 {[%emt 0:0:0]} 23. Qc6+ {[%emt 0:1:22]} Kf8 {[%emt 0:0:2]} 24. Ra1 {[%emt 0:0:35]} Qe6 {[%emt 0:1:39]} 25. Qxe6 {[%emt 0:0:16]} Bxe6 {[%emt 0:0:1]} 26. Rxa7 {[%emt 0:0:1]
} h4 {[%emt 0:1:18]} 27. Bxb6 {[%emt 0:0:37]} Rb8 {[%emt 0:0:0]} 28. Bd4 {[%emt 0:0:3]} Bb4 {[%emt 0:0:34]} 29. Rd1 {[%emt 0:0:20]} Rd8 {[%emt 0:1:3]} 30. Bb6 {[%emt 0:0:21]} Rb8 {[%emt 0:0:14]} 31. Be3 {[%emt 0:0:18]
} Kg7 {[%emt 0:0:13]} 32. Nf3 {[%emt 0:0:11]} d2 {[%emt 0:0:0]} 33. Nd4 {[%emt 0:0:34]} Rhe8 {[%emt 0:0:32]} 34. Rc7 {[%emt 0:1:11]} Ba5 {[%emt 0:0:21]} 35. Nxe6+ {[%emt 0:0:17]} Rxe6 {[%emt 0:0:1]} 36. Rc2 {[%emt 0:0:1]
} Bb6 {[%emt 0:0:40]} 37. Bxb6 {[%emt 0:0:28]} Rbxb6 {[%emt 0:0:0]} 38. Rdxd2 {[%emt 0:0:31]} Rb4 {[%emt 0:0:1]} 39. Rf2 {[%emt 0:0:12]
} Reb6 {[%emt 0:0:5]} 40. Kf1 {[%emt 0:0:9]} Re4 {[%emt 0:0:17]} 41. Rce2 {[%emt 0:0:18]} Rd4 {[%emt 0:0:2]} 42. Ke1 {[%emt 0:1:8]} Rc6 {[%emt 0:0:0]} 43. Rd2 {[%emt 0:0:8]} Re4+ {[%emt 0:0:1]} 44. Kd1 {[%emt 0:0:4]} Rcc4 {[%emt 0:0:4]} 45. Rd7 {[%emt 0:0:21]} Kg8 {[%emt 0:0:21]} 46. f5 {[%emt 0:0:12]
} Rxe5 {[%emt 0:0:17]} 47. fxg6 {[%emt 0:0:14]} fxg6 {[%emt 0:0:0]} 48. Rc2 {[%emt 0:0:38]} Re1+ {[%emt 0:0:28]} 49. Kxe1 {[%emt 0:0:2]
} Rxc2 {[%emt 0:0:1]} 50. Rd2 {[%emt 0:0:2]} Rc1+ {[%emt 0:0:1]} 51. Ke2 {[%emt 0:0:5]} Kf7 {[%emt 0:0:2]} 52. Kd3 {[%emt 0:0:10]} Ke6 {[%emt 0:0:0]} 53. Rc2 {[%emt 0:0:3]} Rf1 {[%emt 0:0:17]} 54. b4 {[%emt 0:0:20]} g5 {[%emt 0:0:24]
} 55. Kc4 {[%emt 0:0:10]} g4 {[%emt 0:0:10]} 56. hxg4 {[%emt 0:0:0]} Rf4+ {[%emt 0:0:1]} 57. Kc5 {[%emt 0:0:3]} Rxg4 {[%emt 0:0:1]} 58. Rd2 {[%emt 0:0:6]} Ke5 {[%emt 0:0:43]} 59. b5 {[%emt 0:0:8]} Rg3 {[%emt 0:0:1]
} 60. b6 {[%emt 0:0:8]} Rc3+ {[%emt 0:0:2]} 61. Kb5 {[%emt 0:0:0]} Rb3+ {[%emt 0:0:1]} 62. Kc6 {[%emt 0:0:6]} Kf4 {[%emt 0:0:2]} 63. Rc2 {[%emt 0:0:13]} 1-0